Cogmind - Beta 16 --- EXPLORER MODE // 2026.01.26 @ 12:03:01 Player: K.K.Y. Result: Destroyed by PI-9TK(R) with Subdweller Laser Performance ------------- Evolutions (0) 0 Regions Visited (3) 600 Robots Destroyed (47) 235 Value Destroyed (759) 759 Prototype IDs (12) 240 Alien Tech Used (0) 0 Bonus (-709) -709 TOTAL SCORE: 1125 Bonus ------- Friendly Fire -709 Cogmind --------- Core Integrity 0/250 Matter 295/300 Energy 22/100 System Corruption 0% Temperature Cool (6) Movement Treading (240) Ox1 Location -10/Subcaves Parts ------- > --- POWER (1) -------- (None) > --- PROPULSION (2) --- Light Treads > --- UTILITY (3) ------ Improved Heat Sink Large Storage Unit Structural Scanner > --- WEAPON (2) ------- Beam Cannon > --- INVENTORY (15) --- Scrap Suit Improved Heat Sink Sensor Array Faulty Experimental Sensor Array Improved Terrain Scanner Launcher Guidance Computer Improved Light Armor Plating Improved Light Armor Plating Makeshift System Shield Shock Bomb Launcher Shock Bomb Launcher Scythe Peak State ------------ > --- POWER ------------ Light Nuclear Core > --- PROPULSION ------- Light Treads > --- UTILITY ---------- Improved Heat Sink Large Storage Unit Core Shielding > --- WEAPON ----------- Beam Cannon Scythe > --- INVENTORY -------- Scrap Suit Improved Heat Sink Structural Scanner Sensor Array Experimental Sensor Array Improved Terrain Scanner Launcher Guidance Computer Improved Light Armor Plating Improved Light Armor Plating Beam Cannon Beam Cannon Shock Bomb Launcher Shock Bomb Launcher Mining Laser [Rating: 17] Favorites ----------- Power Ion Engine Engine Ion Engine Power Core Light Nuclear Core Propulsion Light Treads Treads Light Treads Utility Core Shielding Device Improved Heat Sink Storage Large Storage Unit Protection Core Shielding Weapon Beam Cannon Energy Cannon Beam Cannon Ballistic Gun Assault Rifle Special Weapon Mining Laser Slashing Weapon Scythe Build | -11 -10 -10 -10 ------- Run | Yrd Mat Min Sub Slots Evolved 1 | . 1 . . Power . | . . . . Propulsion . | . . . . Utility 1 | . 1 . . Weapon . | . . . . Parts Attached 24 | 7 4 7 6 Power 2 | 1 . 1 . Engine 1 | 1 . . . Core 1 | . . 1 . Reactor . | . . . . Propulsion 6 | 2 1 3 . Treads 6 | 2 1 3 . Leg . | . . . . Wheel . | . . . . Hover . | . . . . Flight . | . . . . Utility 8 | 2 1 2 3 Device 4 | . . 2 2 Storage 3 | 1 1 . 1 Processor . | . . . . Hackware . | . . . . Protection 1 | 1 . . . Artifact . | . . . . Weapon 8 | 2 2 1 3 Energy Gun . | . . . . Energy Cannon 4 | . 2 1 1 Ballistic Gun 2 | 2 . . . Ballistic Cannon . | . . . . Launcher . | . . . . Special Weapon 1 | . . . 1 Impact Weapon . | . . . . Slashing Weapon 1 | . . . 1 Piercing Weapon . | . . . . Special Melee Weapon . | . . . . Unidentified Prototypes . | . . . . Parts Lost 3 | . . . 3 Power 1 | . . . 1 Propulsion 1 | . . . 1 Utility . | . . . . Weapon 1 | . . . 1 Highest Loss Streak 2 | . . . 2 To Critical Strikes . | . . . . Average Backups 10 | 1 7 13 13 Power . | . . . . Propulsion . | . . . . Utility 5 | . 2 7 9 Weapon 4 | . 3 4 4 Tool/Special . | . . . . Unused Backups 13 | . . 3 10 Power . | . . . . Propulsion 2 | . . 2 . Utility 8 | . . . 8 Weapon 3 | . . 1 2 Tool/Special . | . . . . Average Slot Usage (%) 91 | . 86 99 89 Engine 6 | . 12 6 . Core 4 | . . 5 7 Treads 23 | . 25 25 19 Device 7 | . . 11 14 Storage 12 | . 12 12 12 Protection 11 | . 12 12 10 Energy Cannon 22 | . 23 25 19 Special Weapon 1 | . . . 4 Peak Build Rating 17 | 7 8 16 17 Average Rating 11 | 6 7 14 14 On Entrance 7 | . 7 8 16 Avg Prop Armor Cover (%) . | . . . . Naked Turns . | . . . . Heaviest Build 33 | 20 32 33 33 Greatest Support 40 | 40 40 40 40 Greatest Overweight (x) 1 | 1 . . 1 Average Overweight (x) . | . . . . Largest Inventory Capacity 15 | 10 15 15 15 Average Capacity 14 | 9 14 15 15 Most Carried 15 | 5 11 15 15 Average Carried 11 | 1 7 14 14 Final Capacity 15 | 10 15 15 15 Final Carried 15 | 2 10 15 13 Class Distribution -------------------- 100% | Hacker-Mutant Dominant Class ---------------- Hacker-Mutant | -10/Materials Hacker-Mutant | -10/Mines Hacker-Mutant | -10/Subcaves Resources | -11 -10 -10 -10 ----------- Run | Yrd Mat Min Sub Matter Collected 539 | 360 64 70 45 Remotely . | . . . . Salvage Created 1609 | 214 595 296 504 Parts 107 | 25 42 11 29 Haulers Intercepted 2 | . 2 . . Recyclers Shooed . | . . . . Parts Field Recycled . | . . . . Retrieved Matter . | . . . . Parts Self-Destructed . | . . . . Prevented . | . . . . Parts Restored . | . . . . Kills | -11 -10 -10 -10 ------- Run | Yrd Mat Min Sub Combat Hostiles Destroyed 30 | . 8 11 11 Cannons 30 | . 8 11 11 Classes Destroyed 12 | 2 6 1 3 Worker 1 | . 1 . . Builder 6 | . 6 . . Tunneler 9 | 8 . 1 . Hauler 2 | . 2 . . Recycler 2 | 1 1 . . Turret 2 | . . . 2 Watcher 2 | . 2 . . Swarmer 8 | . 4 . 4 Grunt 7 | . 4 1 2 Artisan 2 | . . . 2 Subdweller 5 | . . . 5 Assembled 10 | . . 10 . Thug 3 | . . 3 . Best Kill Streak 10 | 5 5 10 8 Combat Bots Only 10 | . 2 10 6 Max Kills in Single Turn 2 | 1 2 1 1 Gunslinging . | . . . . Exploded . | . . . . Melee . | . . . . Uniques/NPCs Destroyed . | . . . . Combat | -11 -10 -10 -10 -------- Run | Yrd Mat Min Sub Hostile Shots Fired 175 | . 12 35 128 Missed 59 | . 3 10 46 Hits 116 | . 9 25 82 Melee 1 | . . 1 . Projectile 115 | . 9 24 82 AOE 1 | . . . 1 Critical Strikes 1 | . . . 1 Damage Taken 1082 | . 124 194 764 Core 260 | . 8 41 211 Absorbed by Shields . | . . . . Redirected to Shielding 31 | . 2 6 23 Ignored by Resistances 678 | . 78 124 476 Core Remaining (%) 100 | 100 . . . Volleys Fired 130 | 15 28 32 55 Largest 2 | 2 2 2 2 Hottest 160 | 40 120 120 160 Shots Fired 253 | 30 56 64 103 Gun 38 | 30 8 . . Cannon 201 | . 48 64 89 Launcher . | . . . . Special 14 | . . . 14 Kinetic 38 | 30 8 . . Thermal 215 | . 48 64 103 Explosive . | . . . . Electromagnetic . | . . . . Robot Hit Streak 39 | 18 39 20 27 Robot Miss Streak 3 | 1 2 3 1 Penetration Max . | . . . . Secondary Targets . | . . . . Shots Hit Robots 180 | 25 43 43 69 Core Hits 80 | 10 22 24 24 Critical Kills . | . . . . Critical Parts Destroyed 1 | 1 . . . Critical Strikes 1 | 1 . . . Destroy 1 | 1 . . . Melee Attacks . | . . . . Impact . | . . . . Slashing . | . . . . Piercing . | . . . . Sneak Attacks . | . . . . Combat Hostiles . | . . . . Follow-up Attacks . | . . . . Damage Inflicted 2952 | 308 719 788 1137 Guns 396 | 308 88 . . Cannons 2508 | . 631 788 1089 Explosions . | . . . . Melee . | . . . . Ramming . | . . . . Kinetic 396 | 308 88 . . Thermal 2556 | . 631 788 1137 Explosive . | . . . . Electromagnetic . | . . . . Impact . | . . . . Slashing . | . . . . Piercing . | . . . . Highest Corruption . | . . . . Average Corruption . | . . . . Corruption Purged . | . . . . Corruption Blocked . | . . . . Overload Shots . | . . . . Overflow Damage 46 | . 17 1 28 Projectiles 46 | . 17 1 28 Explosions . | . . . . Melee . | . . . . Knockbacks . | . . . . Impact . | . . . . Kinetic . | . . . . Secondary . | . . . . Self-Inflicted Damage . | . . . . Shots . | . . . . Rammed . | . . . . Targets Rammed . | . . . . Kicked . | . . . . Crushed . | . . . . Highest Temperature 233 | . 233 126 . Average Temperature 67 | . 84 45 . Received Heat Transfer 499 | . 18 88 393 Siege Activations . | . . . . Martial Activations . | . . . . Shielding Activations . | . . . . Robots Disrupted . | . . . . Combat Hostiles . | . . . . Robots Corrupted . | . . . . Combat Hostiles . | . . . . Parts Fried . | . . . . Impact Corruptions . | . . . . Robots Melted . | . . . . Combat Hostiles . | . . . . Parts Melted 4 | . 3 . 1 Heat Transferred 5391 | . 1332 1665 2394 Parts Sabotaged . | . . . . Parts Stolen . | . . . . Parts Stripped . | . . . . Power Chain Reactions . | . . . . Alert | -11 -10 -10 -10 ------- Run | Yrd Mat Min Sub Maximum Alert Level . | . . . . Low Security (%) 100 | 100 100 100 . Level 1 . | . . . . Level 2 . | . . . . Level 3 . | . . . . Level 4 . | . . . . Level 5 . | . . . . High Security . | . . . . Max Security . | . . . . Peak Influence 57 | 10 57 20 . Initial . | . . . . Average 2 | 1 4 . . Influence Increases 646 | 45 286 25 290 Destroy 0b10 Robot/C 340 | . 160 20 160 Destroy 0b10 Robot/NC 110 | 45 60 5 . Destroy Leader 58 | . 48 . 10 Successful Hack 18 | . 18 . . Lose Combat Pursuer 120 | . . . 120 Influence Decreases 646 | 45 286 25 290 Time Decay 646 | 45 286 25 290 Squads Dispatched 1 | . . 1 . Investigation 1 | . . 1 . Extermination . | . . . . Reinforcement . | . . . . Assault . | . . . . Garrison . | . . . . Intercept . | . . . . Searches Triggered . | . . . . Construction Impeded . | . . . . Haulers Reinforced . | . . . . Active Scanning Responses . | . . . . Cargo Convoy Interrupts . | . . . . Stealth | -11 -10 -10 -10 --------- Run | Yrd Mat Min Sub Distress Signals 2 | . 1 1 . Communications Jammed . | . . . . Distress Signals . | . . . . Times Spotted 50 | . 11 20 19 Peak Tracking Total 16 | . 2 16 4 Tactical Retreats 4 | . . 1 3 Traps | -11 -10 -10 -10 ------- Run | Yrd Mat Min Sub Traps Triggered 3 | . 3 . . Indirectly . | . . . . Trap Hack Attempts . | . . . . Triggered . | . . . . Disarmed 11 | . 11 . . Reprogrammed . | . . . . Reused . | . . . . Traps Extracted . | . . . . Installed . | . . . . Triggered . | . . . . Machines | -11 -10 -10 -10 ---------- Run | Yrd Mat Min Sub Machines Disabled 1 | . . . 1 Max in Single Turn 1 | . . . 1 Machines Repaired . | . . . . Machines Dismantled . | . . . . Machines Sabotaged . | . . . . Overloaded Fab Kills . | . . . . Hacking | -11 -10 -10 -10 --------- Run | Yrd Mat Min Sub Machines Accessed 12 | . 10 1 1 Terminals 8 | . 8 . . Fabricators . | . . . . Repair Stations . | . . . . Recycling Units 2 | . 2 . . Scanalyzers . | . . . . Garrison Access . | . . . . Total Hacks 20 | . 18 1 1 Successful 17 | . 15 1 1 Failed 3 | . 3 . . Catastrophic . | . . . . Database Lockouts . | . . . . Manual 11 | . 11 . . Terminals 14 | . 14 . . Fabricators . | . . . . Repair Stations . | . . . . Recycling Units 4 | . 4 . . Scanalyzers . | . . . . Garrison Access . | . . . . Terminal Hacks 5 | . 3 1 1 Open Door 1 | . . 1 . Disarm Traps 3 | . 3 . . Proto ID Catalog 1 | . . . 1 Fabricator Hacks . | . . . . Repair Station Hacks . | . . . . Recycling Unit Hacks 2 | . 2 . . Retrieve Components 2 | . 2 . . Scanalyzer . | . . . . Garrison Access Hacks . | . . . . Unauthorized Hacks 8 | . 8 . . Terminals 8 | . 8 . . Botnet 8 | . 8 . . Fabricators . | . . . . Repair Stations . | . . . . Recycling Units . | . . . . Scanalyzers . | . . . . Garrison Access . | . . . . Data Cores Recovered . | . . . . Used . | . . . . Hacking Detections 7 | . 7 . . Full Trace Events . | . . . . Feedback Events . | . . . . Feedback Blocked . | . . . . Robot Schematics Acquired . | . . . . Robots Built . | . . . . Authchips . | . . . . Time . | . . . . Total Robot Build Rating . | . . . . Part Schematics Acquired . | . . . . Parts Built . | . . . . Authchips . | . . . . Time . | . . . . Total Part Build Rating . | . . . . Part Studies Acquired . | . . . . Parts Repaired . | . . . . Time . | . . . . Parts Recycled . | . . . . Recycled Matter . | . . . . Retrieved Matter . | . . . . Retrieved Components 13 | . 13 . . Parts Scanalyzed . | . . . . Part Schematics Acquired . | . . . . Parts Damaged . | . . . . Bothacking | -11 -10 -10 -10 ------------ Run | Yrd Mat Min Sub Used RIF Installer . | . . . . Robots Hacked . | . . . . Non-combat . | . . . . Combat . | . . . . Robot Hacks Applied . | . . . . Relay Couplers Released . | . . . . Fabnet Peak Effective % . | . . . . Robots Rewired . | . . . . Allies Hacked . | . . . . Hacks Repelled . | . . . . Allies | -11 -10 -10 -10 -------- Run | Yrd Mat Min Sub Total Allies . | . . . . Largest Group . | . . . . Highest-Rated Group . | . . . . Highest-Rated Ally . | . . . . Total Orders . | . . . . Ally Attacks . | . . . . Total Damage . | . . . . Kills . | . . . . Allies Corrupted . | . . . . Allies Melted . | . . . . Intel | -11 -10 -10 -10 ------- Run | Yrd Mat Min Sub Active Infowar (turns) 223 | . . . 223 Sensors 8 | . . . 8 Structural 215 | . . . 215 Robot Analysis Total . | . . . . Derelict Logs Recovered 1 | . . 1 . Drone Launches . | . . . . Drone Recoveries . | . . . . Exploration | -11 -10 -10 -10 ------------- Run | Yrd Mat Min Sub Turns Passed 4656 | 251 1691 1322 1392 Spaces Moved 2476 | 135 985 745 611 Core 22 | 22 . . . Treads 2454 | 113 985 745 611 Legs . | . . . . Wheels . | . . . . Hover . | . . . . Flight . | . . . . Fastest Speed 50 | 50 160 160 160 Average Speed 165 | 142 160 160 184 Slowest Speed 240 | 160 160 160 240 Overloaded Moves . | . . . . Propulsion Burnouts . | . . . . Robots Hopped . | . . . . Potential Cave-ins . | . . . . Cave-ins Triggered . | . . . . Exploration Rate (%) 62 | 6 99 101 43 Regions Visited 3 Branch Regions 2 Pre-discovered Areas 1 | . . 1 . Known Exits Taken 3 | 1 1 1 . Unknown Exits Taken . | . . . . Scrap Searched 5 | . . 1 4 Spaces Dug . | . . . . Terrain Destroyed . | . . . . Melee . | . . . . Projectile . | . . . . AOE . | . . . . Terrain Rammed . | . . . . Walls Destroyed . | . . . . Machines Disabled . | . . . . Actions | -11 -10 -10 -10 --------- Run | Yrd Mat Min Sub Total 2770 | 163 1046 815 746 Wait 93 | . 12 12 69 Move 2473 | 134 984 744 611 Hop . | . . . . Pick Up 31 | 7 12 11 1 Fast Attach 2 | 2 . . . Attach 8 | 5 2 1 . Detach 2 | . 2 . . Swap 14 | . 2 6 6 Drop 17 | . 4 9 4 Fire 130 | 15 28 32 55 Melee . | . . . . Ram . | . . . . Kick . | . . . . Crush . | . . . . Escape Stasis . | . . . . Rewire . | . . . . Trap . | . . . . Miscellaneous . | . . . . Route ------- -11/Scrapyard -10/Materials (discovered 4 exits: *Mat x3 / *Min) -10/Mines (discovered 3 exits: *Mat x2 / *Sub) -10/Subcaves (discovered 1 exit: *Rec) History --------- Turn | Location | Event 4 | -11/Scrapyard | Identified exit to Materials 4 | -11/Scrapyard | Discovered exit to Materials (range 15) 252 | -11/Scrapyard | Entered Materials 252 | -10/Materials | Evolved 1 slot: Utility x1 268 | -10/Materials | Identified exit to Mines 268 | -10/Materials | Discovered exit to Mines (range 15) 310 | -10/Materials | Build established: Hacker-Mutant 709 | -10/Materials | Identified exit to Materials 709 | -10/Materials | Discovered exit to Materials (range 12) 974 | -10/Materials | Discovered exit to Materials (range 10) 1372 | -10/Materials | Discovered exit to Materials (range 11) 1943 | -10/Materials | Entered Mines 1944 | -10/Mines | Assembled infested the area 1949 | -10/Mines | Assisted by a Guerilla fighting off Assembled 1983 | -10/Mines | Identified exit to Subcaves 1983 | -10/Mines | Discovered exit to Subcaves (range 9) 2032 | -10/Mines | Discovered exit to Materials (range 16) 2049 | -10/Mines | Destroyed 10 combat bots 2076 | -10/Mines | Found a Scrap Suit stashed away for nefarious purposes 2080 | -10/Mines | Found Scrap Suit 2380 | -10/Mines | Joined a pair of Derelicts in attacking an 0b10 outpost 2535 | -10/Mines | Discovered exit to Materials (range 16) 2564 | -10/Mines | Learned location of Storage (-9) 2570 | -10/Mines | Met a Derelict shopkeep closing up shop 2951 | -10/Mines | Found a damaged Exp. Sensor Array with a note attached 2960 | -10/Mines | Found Prototype Device 3265 | -10/Mines | Entered Subcaves 3266 | -10/Subcaves | Approached by a straggling Scientist 3448 | -10/Subcaves | Identified exit to Recycling 3448 | -10/Subcaves | Discovered exit to Recycling (range 10) 3657 | -10/Subcaves | Visited 4L-MR0's lab 4085 | -10/Subcaves | Ambushed by angry Subdweller bent on revenge 4087 | -10/Subcaves | Core integrity fell below 50% 4489 | -10/Subcaves | Shifting Twisted Machinery released Battle Rifle 4633 | -10/Subcaves | Core integrity fell below 20% 4657 | -10/Subcaves | Destroyed by PI-9TK(R) with Subdweller Laser Last Messages --------------- 04109_ TZ-DDU(R) destroyed. 04114_ Acquired 15 matter. 04429_ Searching scrap... 04429_ Found Mak. System Shield. 04429_ Found Mak. Kinetic Plating. 04429_ Found 66 Matter. 04435_ Dropped Core Shielding. 04436_ Acquired Mak. System Shield. 04437_ Acquired 10 matter. 04443_ Searching scrap... 04443_ Found Sub. Laser. 04443_ Found 32 Matter. 04444_ Acquired 10 matter. Battle Rifle falls loose from the Twisted Machinery. 04513_ Dropped Beam Cannon. 04537_ Subatomizers dissect the Beam Cannon. 04618_ 5G-O6Q(u) tweaks Twisted Machinery. 04634_ Mining Laser destroyed. 04645_ 5G-O6Q(u) tweaks Twisted Machinery. Map ----- +----------------------------------------------------+ | ?????????????????????????????????????????????????? | | ?????????????????????????????????????????????????? | | ?????????????????????????????????????????????????? | | ?????????????????????????????????????????????????? | | ?????????????????????????????????????????????????? | | ?????????????????????????????????????????????????? | | ?????????????????????????????????????????????????? | | ?????????????????????????????????????????????????? | | ?????????????????????????????????????????????????? | | ????????????????? ???????????????????????????? | | ??????????????? ???????????????????????????? | | ?????????????? ???????????????????????????? | | ????????????? ???????????????????????????? | | ???????????? ## ???????????????????????????? | | ????????????### ???????????????????????????? | | ????????????## #??????????????????????????? | | ???????????? ####????????????????????????? | | ?????????????? ### ????????????############# | | ??????????????? ## ????????????############# | | ??????????????? ???????????### ### | | ???????????????## ??############ ### #### | | ???????????????## ? ########### ### #[" | | ???????????????## ## ### ## ### #### ##%"% | | ??????????????### ### ### ##### #""!" | | ??????????????#### #### ## ###### #" "# | | ?????????????### ##@ ## ###### ##### | | ?????????????##"" """" #RR ##### #]] ## | | ?????????????"#"""" ## #####" " "" ##### | | ?????????????" """### #####" "##[ #### | | ???????????""" """"#### ##?##" ####"###?## | | ???????????## ## ""####### "" ####"###??# | | ???????????#####""" ???###### """ " # # ??? | | ???????????#####"?" ???????# """ " ?? | | ?????????????? "?? ?????????""" ? | | ??????????????????????????????""" ### ## | | ??????????????????????????????""" ######## ## | | ???????????????????????????????"" ######### ?# | | ???????????????????????????????"" ###??????? ??# | | ???????????????????????????????""" ?????????????## | | ????????????????????????????????"""??????????????# | | ?????????????????????????????????????????????????# | | ????????????????????????????????????????????????? | | ?????????????????????????????????????????????????? | | ?????????????????????????????????????????????????? | | ?????????????????????????????????????????????????? | | ?????????????????????????????????????????????????? | | ?????????????????????????????????????????????????? | | ?????????????????????????????????????????????????? | | ?????????????????????????????????????????????????? | | ?????????????????????????????????????????????????? | +----------------------------------------------------+ Best States ------------- Heat Dissipation 39 Energy Generation 14 Energy Capacity 250 Matter Stores 300 Matter Capacity 300 Sight Range 16 Robot Scan Range 14 Terrain Scan Density 10 Resistance: KI 35 Resistance: TH 35 Resistance: EX 35 Resistance: EM 35 Resistance: I 35 Resistance: S 35 Resistance: P 35 Core Shielding 20 Evasion (%) 50 Recoil Reduction 2 Offensive Hacking 20 Item Schematics ----------------- None Robot Schematics ------------------ None Fabricated ------------ Nothing Repaired ---------- Nothing Studied --------- None Alien Tech Used ----------------- None Achievements -------------- None Challenges ------------ None Game ------ Seed GaussThiefStripper Manual? 0 Play Time 00:17:31 Cumulative 310.5 hours Start 2026.01.26 @ 11:46:48 End 2026.01.26 @ 12:03:01 Sessions 1 Manual Loads 0 Difficulty Explorer Special Mode None Game No. 484 Rogue 0 Adventurer 0 Explorer 484 Win Type - Total 0 Types 0/0/0/0/0/0/0/0/0/0 Lore% 77 Gallery% 70 Achievement% 56 Wizard Run 0 Options --------- Layout 1 ASCII 0 Keyboard 0 Movement Mouse Keybinds 1 Fullscreen 1 Font 24/Smallcaps Map View 50x35 Zoom Use 0% Tactical HUD 1 Map Filters NONE Filters NONE Steam 1 RUN: 96cbbdb9-986e-49e6-bda5-26429f258b73